bitfinex/quotes_ETHUSD_20250329
["timestamp","ask_amount","ask_price","bid_price","bid_amount"]
[1743214498162,1.94083557,1915.5,1915.2,0.8146]
[1743214498363,1.94083557,1915.7,1915.4,6.03519]
[1743214498562,1.94083557,1915.7,1915.4,11.25591]
[1743214498792,1.94083557,1915.7,1915.5,0.52171505]
[1743214499088,3.0,1915.7,1915.5,0.52171505]
[1743214499266,4.94083557,1915.7,1915.5,0.52171505]
[1743214499467,1.94083557,1915.6,1915.5,0.52171505]
[1743214499893,1.94083557,1915.7,1915.5,0.52171505]
[1743214500092,4.94083557,1915.7,1915.5,0.52171505]
[1743214500795,1.94083557,1915.8,1915.6,5.22029]
[1743214500966,6.23199888,1915.9,1915.7,0.52110323]
[1743214501166,3.0,1915.9,1915.6,5.22029]
[1743214501477,3.0,1915.9,1915.7,0.52110323]
[1743214501998,3.0,1915.9,1915.8,0.52079736]
[1743214502293,3.0,1915.9,1915.6,0.8104]
[1743214502496,3.23199888,1916.1,1915.8,0.52079736]
[1743214502666,3.0,1916.0,1915.7,5.74092323]
[1743214502995,6.23199888,1916.0,1915.8,0.52079736]
[1743214503197,6.23199888,1916.0,1915.6,11.854059]
[1743214503499,6.23199888,1916.0,1915.7,1.70650913]
[1743214504491,11.45120888,1916.0,1915.7,1.70650913]
[1743214504698,16.67065888,1916.0,1915.7,0.52110323]
[1743214504894,3.23199888,1915.9,1915.7,0.52110323]
[1743214505075,3.23199888,1915.9,1915.5,11.25135]
[1743214505597,3.23199888,1915.9,1915.6,0.51899646]
[1743214506665,3.23199888,1915.7,1915.6,0.51899646]
[1743214506867,4.06119888,1915.8,1915.6,0.51899646]
[1743214507067,6.23199888,1915.9,1915.6,5.22017]
[1743214507262,6.23199888,1915.9,1915.7,0.51869056]
[1743214507563,6.23199888,1915.9,1915.6,0.8104]
[1743214507759,6.23199888,1915.9,1915.8,0.51838469]
[1743214507965,6.23199888,1915.9,1915.6,0.8104]
[1743214508212,6.23199888,1915.9,1915.7,0.51869056]
[1743214508383,3.23199888,1915.8,1915.4,5.22075]
[1743214508583,3.23199888,1915.6,1915.5,0.51930238]
[1743214508785,6.23199888,1915.7,1915.5,0.51930238]
[1743214509098,3.0,1915.8,1915.5,0.51930238]
[1743214509262,5.76919,1916.1,1915.6,0.8104]
[1743214509263,3.23199888,1916.0,1915.6,0.8104]
[1743214509467,8.45076888,1916.2,1915.8,5.21961]
[1743214509708,8.45076888,1916.2,1915.9,0.51807886]
[1743214509908,3.0,1916.1,1915.9,0.51807886]
[1743214510073,3.0,1916.1,1915.8,5.21961]
[1743214510272,3.0,1916.1,1916.0,0.51777306]
[1743214510485,3.0,1916.1,1915.9,6.54792886]
[1743214510685,3.0,1916.1,1916.0,0.51777306]
[1743214511411,3.23199888,1916.4,1916.0,0.51777306]
[1743214511581,3.0,1916.3,1916.0,5.73697306]
[1743214511780,3.0,1916.3,1916.0,6.91365737]
[1743214513607,9.27924888,1916.5,1916.1,5.21874]
[1743214513919,3.0,1916.3,1916.2,0.51716156]
[1743214514222,3.0,1916.3,1916.1,6.02914]
[1743214514382,3.0,1916.3,1916.2,0.51716156]
[1743214514585,3.0,1916.3,1916.1,6.02914]
[1743214514886,3.0,1916.3,1916.1,7.27162343]
[1743214515193,3.0,1916.3,1916.2,0.51716156]
[1743214515397,3.0,1916.3,1916.1,7.27162343]
[1743214515617,3.0,1916.3,1916.2,0.51716156]
[1743214515939,3.0,1916.3,1916.1,2.05288343]
[1743214516107,3.0,1916.3,1916.2,0.51716156]
[1743214516499,3.0,1916.3,1916.1,2.05288343]
[1743214516820,6.23199888,1916.3,1916.2,0.51356656]
[1743214517024,12.20797888,1916.3,1915.9,5.97244]
[1743214517262,12.20797888,1916.3,1916.0,0.51417806]
[1743214519139,3.23199888,1916.2,1916.0,0.51417806]
[1743214519339,3.23199888,1916.2,1916.0,1.65113987]
[1743214522425,8.45067888,1916.2,1916.0,1.65113987]
[1743214522618,13.66946888,1916.2,1916.0,0.51417806]
[1743214522819,5.21893,1916.1,1916.0,0.51417806]
[1743214523018,3.23199888,1916.2,1915.9,5.21947]
[1743214523251,6.23199888,1916.3,1916.0,5.97217]
[1743214523955,6.23199888,1916.3,1916.1,0.50898226]
[1743214525883,11.45038888,1916.3,1916.1,0.50898226]
[1743214528493,6.23199888,1916.3,1916.1,0.50898226]
[1743214528860,1.9383227,1916.2,1916.1,0.50898226]
[1743214531479,0.7671,1916.1,1915.2,0.7611]
[1743214531632,1.9383227,1915.3,1915.0,0.7611]
[1743214531830,1.9383227,1915.1,1914.8,5.6431]
[1743214532035,1.9383227,1915.1,1914.8,14.19172]
[1743214532842,3.23430198,1915.2,1914.8,14.19172]
[1743214533155,8.45571198,1915.2,1914.8,8.96941]
[1743214533518,8.45651198,1914.9,1914.5,6.08]
[1743214533680,3.23430198,1914.7,1914.4,15.3288]
[1743214533883,3.23430198,1914.7,1914.4,10.10538]
[1743214535155,3.23430198,1914.7,1914.5,0.5244739]
[1743214535971,3.23430198,1914.7,1914.5,5.4074739]
[1743214537553,8.45656198,1914.9,1914.5,5.4074739]
[1743214537760,8.45656198,1914.9,1914.5,6.47055929]
[1743214538297,3.23430198,1914.7,1914.5,6.47055929]
[1743214542108,5.22302,1914.6,1914.5,0.5244739]
[1743214542402,5.22366,1914.4,1914.2,27.62]
[1743214542562,3.23430198,1914.3,1914.2,27.62]
[1743214545277,8.45814198,1914.3,1914.2,27.62]
[1743214545974,8.45814198,1914.3,1914.2,28.15717333]
[1743214553786,3.23430198,1913.9,1913.8,4.886]
[1743214556052,3.23430198,1913.9,1913.7,16.19141]
[1743214556937,3.23430198,1913.9,1913.8,0.54083822]
[1743214561041,5.22547,1913.7,1913.6,27.643]
[1743214561240,8.45977198,1913.7,1913.6,28.18447129]
[1743214563841,5.99594,1914.1,1913.7,5.22533]
[1743214564041,2.48727434,1914.3,1913.8,6.54573822]
[1743214564042,3.23430198,1914.2,1913.8,6.54573822]
[1743214564234,3.0,1914.1,1913.8,7.20031204]
[1743214564942,3.23430198,1914.0,1913.8,7.20031204]
[1743214565239,3.23430198,1913.9,1913.8,0.54083822]
[1743214566161,8.45923198,1913.9,1913.8,0.54083822]
[1743214566338,9.23073198,1913.9,1913.8,0.54083822]
[1743214566527,9.23073198,1913.9,1913.6,27.643]
[1743214566726,10.67627518,1913.9,1913.8,0.54140489]
[1743214566930,10.67647518,1913.9,1913.7,0.54172141]
[1743214567143,10.67647518,1913.9,1913.8,0.54140489]
[1743214567518,10.67647518,1913.9,1913.6,27.643]
[1743214567719,3.23430198,1913.7,1913.6,27.643]
[1743214568843,6.23430198,1913.7,1913.6,27.643]
[1743214569052,12.60572318,1913.7,1913.6,27.643]
[1743214570048,12.60572318,1913.7,1913.6,28.18503796]
[1743214570348,12.60572318,1913.7,1913.6,0.54203796]
[1743214570770,7.38025318,1913.7,1913.6,0.54203796]
[1743214571054,6.23430198,1913.7,1913.4,5.22627]
[1743214571235,6.23430198,1913.7,1913.5,0.54235454]
[1743214573716,11.45993198,1913.7,1913.5,0.54235454]
[1743214574050,3.0,1913.7,1913.6,0.54203796]
[1743214574949,6.23430198,1913.7,1913.6,0.54203796]
[1743214575143,6.23430198,1913.7,1913.4,6.00598]
[1743214575451,6.23430198,1913.7,1913.5,0.54235454]
[1743214575649,7.90279618,1913.7,1913.5,0.54235454]
[1743214575951,13.12831618,1913.7,1913.5,0.54235454]
[1743214576350,13.12831618,1913.7,1913.3,10.12756]
[1743214576547,13.12831618,1913.7,1913.6,0.54203796]
[1743214576750,13.12831618,1913.7,1913.3,10.12756]
[1743214576751,5.22614,1913.5,1913.1,32.87809]
[1743214576921,3.23430198,1913.2,1913.1,27.651]
[1743214577352,5.98194,1913.4,1913.1,27.651]
[1743214577353,6.23430198,1913.3,1913.1,27.651]
[1743214577555,6.23430198,1913.3,1913.1,28.1946212]
[1743214579459,8.46114198,1913.2,1913.1,28.1946212]
[1743214580760,3.23430198,1913.2,1913.1,28.1946212]
[1743214581938,8.46114198,1913.2,1913.1,28.1946212]
[1743214585897,3.23430198,1913.2,1913.1,28.1946212]
[1743214587466,8.46114198,1913.2,1913.1,28.1946212]
[1743214587788,3.23430198,1913.2,1913.1,28.1946212]
[1743214589770,8.46114198,1913.2,1913.1,28.1946212]
[1743214590375,3.23430198,1913.2,1913.1,28.1946212]
[1743214592598,8.46114198,1913.2,1913.1,28.1946212]
[1743214594194,8.46114198,1913.2,1913.1,0.5436212]
[1743214594509,8.46114198,1913.2,1912.8,10.93334]
[1743214594706,8.46114198,1913.2,1912.9,0.54945685]
[1743214594998,8.46114198,1913.2,1912.8,10.93334]
[1743214595164,8.46114198,1913.2,1913.0,0.54914007]
[1743214595366,8.46114198,1913.2,1912.9,0.54945685]
[1743214595597,8.46114198,1913.2,1913.1,0.54882332]
[1743214595799,10.12613121,1913.2,1913.0,0.54914007]
[1743214596112,10.12613121,1913.2,1913.1,0.54882332]
[1743214596303,10.12613121,1913.2,1912.8,10.93334]
[1743214596497,8.46114198,1913.2,1912.9,0.54945685]
[1743214596798,8.46114198,1913.2,1912.8,10.93334]
[1743214597001,8.46114198,1913.2,1913.0,0.54914007]
[1743214597168,8.46114198,1913.2,1912.9,0.54945685]
[1743214597376,8.46114198,1913.2,1913.0,0.54914007]
[1743214597566,10.12992518,1913.2,1913.0,0.54914007]
[1743214597773,10.12992518,1913.2,1912.8,10.93334]
[1743214598173,10.12992518,1913.2,1912.9,0.54945685]
[1743214598595,10.12992518,1913.2,1912.8,10.93334]
[1743214598804,10.12992518,1913.2,1912.9,0.54945685]
[1743214599114,10.12992518,1913.2,1912.8,10.93334]
[1743214599293,10.12992518,1913.2,1912.9,0.54945685]
[1743214599500,10.12992518,1913.2,1912.8,10.93334]
[1743214599698,10.12992518,1913.2,1912.9,0.54945685]
[1743214599871,10.12992518,1913.2,1912.8,16.16107]
[1743214600076,3.23430198,1913.2,1912.9,5.77698685]
[1743214600277,3.0,1913.3,1913.0,6.02698]
[1743214600476,3.0,1913.3,1913.1,5.77593332]
[1743214600903,3.0,1913.3,1913.2,5.22684]
[1743214601116,3.0,1913.3,1913.2,5.7753466]
[1743214601413,3.0,1913.3,1913.2,0.5485066]
[1743214602404,3.0,1913.3,1913.0,0.7997]
[1743214602606,3.0,1913.3,1913.1,0.549257]
[1743214602910,3.0,1913.3,1913.0,6.02698]
[1743214603078,3.0,1913.3,1913.1,0.549257]
[1743214603277,3.0,1913.3,1913.0,6.02698]
[1743214603477,3.0,1913.3,1913.1,0.549257]
[1743214603704,3.0,1913.3,1913.0,6.02698]
[1743214604003,3.0,1913.3,1913.1,0.549257]
[1743214604212,3.0,1913.3,1913.0,6.02698]
[1743214604509,3.0,1913.3,1913.1,0.549257]
[1743214604711,3.0,1913.3,1913.0,6.02698]
[1743214604880,3.0,1913.3,1913.1,0.549257]
[1743214605077,3.0,1913.3,1913.0,6.02698]
[1743214605408,3.0,1913.3,1913.1,0.549257]
[1743214605577,3.0,1913.3,1913.0,6.02698]
[1743214605777,3.0,1913.3,1913.1,0.549257]
[1743214606078,3.0,1913.3,1913.0,6.02698]
[1743214606278,3.0,1913.3,1913.2,0.54894029]
[1743214606495,3.0,1913.3,1913.0,6.02698]
[1743214606775,3.0,1913.3,1913.1,0.54932375]
[1743214607105,4.2243012,1913.3,1913.0,6.02698]
[1743214607408,4.2243012,1913.3,1913.1,0.54932375]
[1743214607609,4.2243012,1913.3,1913.0,0.7997]
[1743214607812,9.4509012,1913.3,1913.1,0.54932375]
[1743214608015,9.4509012,1913.3,1912.9,15.34701]
[1743214608212,9.4509012,1913.3,1913.0,0.5496405]
[1743214608920,4.2243012,1913.3,1913.0,5.7769905]
[1743214609088,3.0,1913.3,1913.0,5.7769905]
[1743214612711,3.0,1913.3,1913.0,6.5772905]
[1743214614023,3.0,1913.3,1913.1,5.22708]
[1743214614231,3.0,1913.3,1913.2,0.54900704]
[1743214614524,3.0,1913.5,1913.2,5.77584704]
[1743214614816,8.22602,1913.5,1913.2,0.54900704]
[1743214615323,3.0,1913.3,1913.2,0.54900704]
[1743214615522,3.0,1913.3,1913.0,11.25506]
[1743214615722,3.0,1913.3,1913.2,0.54900704]
[1743214615919,3.0,1913.3,1913.0,6.02768]
[1743214616145,3.0,1913.3,1913.2,0.54900704]
[1743214616146,3.8163,1913.3,1913.2,0.54900704]
[1743214616332,5.22684,1913.2,1913.1,0.54932375]
[1743214616503,5.22684,1913.2,1912.8,38.61211]
[1743214616830,5.22684,1913.2,1912.8,43.83984]
[1743214616989,5.22684,1913.2,1912.9,0.54979045]
[1743214617190,13.18146598,1913.3,1912.9,5.22764]
[1743214617517,13.18146598,1913.3,1913.0,0.54947367]
[1743214619724,12.27771198,1913.1,1913.0,0.54947367]
[1743214619924,12.27771198,1913.1,1912.8,27.662]
[1743214620224,17.50505198,1913.1,1912.9,0.54979045]
[1743214620422,17.50505198,1913.1,1912.8,27.662]
[1743214620624,17.50505198,1913.1,1912.9,0.54979045]
[1743214620821,18.16924081,1913.1,1912.8,27.662]
[1743214620992,5.22746,1913.0,1912.9,0.54979045]
[1743214621193,18.16924081,1913.1,1912.8,27.662]
[1743214621392,18.16924081,1913.1,1912.9,0.54979045]
[1743214621628,18.16924081,1913.1,1912.8,27.662]
[1743214621806,3.23430198,1913.0,1912.9,0.54979045]
[1743214622008,3.23430198,1913.0,1912.8,27.662]
[1743214622330,3.23430198,1913.0,1912.9,0.54979045]
[1743214622533,3.23430198,1913.0,1912.8,27.662]
[1743214622735,11.46175198,1913.0,1912.9,0.54979045]
[1743214622943,11.46175198,1913.0,1912.8,27.662]
[1743214623131,11.46175198,1913.0,1912.9,0.54979045]
[1743214624446,11.46175198,1913.0,1912.8,27.662]
[1743214624615,11.46175198,1913.0,1912.9,0.54979045]
[1743214624812,11.46175198,1913.0,1912.8,27.662]
[1743214625013,8.22745,1913.0,1912.9,0.54979045]
[1743214625214,8.22745,1913.0,1912.8,27.662]
[1743214625413,8.22745,1913.0,1912.9,0.54979045]
[1743214625627,8.22745,1913.0,1912.8,27.662]
[1743214625846,8.22745,1913.0,1912.9,0.54979045]
[1743214626032,8.22745,1913.0,1912.8,27.662]
[1743214626233,8.22745,1913.0,1912.9,0.54979045]
[1743214626434,8.22745,1913.0,1912.8,27.662]
[1743214626633,8.22745,1913.0,1912.9,0.54979045]
[1743214626836,8.22745,1913.0,1912.8,27.662]
[1743214627042,8.22745,1913.0,1912.9,0.54979045]
[1743214627218,3.0,1913.0,1912.8,27.662]
[1743214627542,0.7804,1913.4,1913.1,5.22704]
[1743214627747,3.23430198,1913.5,1913.2,5.22667]
[1743214627912,3.0,1913.4,1913.2,0.55090899]
[1743214628940,3.0,1913.4,1913.0,10.11734]
[1743214629126,8.2264,1913.4,1913.3,0.55059231]
[1743214629330,8.2264,1913.4,1913.0,10.11734]
[1743214629532,8.2264,1913.4,1913.3,0.55059231]
[1743214629748,8.2264,1913.4,1913.0,10.11734]
[1743214629953,8.2264,1913.4,1913.3,0.55059231]
[1743214630113,8.2264,1913.4,1913.0,10.11734]
[1743214630318,8.2264,1913.4,1913.3,0.55059231]
[1743214630519,8.2264,1913.4,1913.0,10.11734]
[1743214630845,8.2264,1913.4,1913.0,11.731107]
[1743214631154,6.00615,1913.6,1913.2,5.22673]
[1743214631350,3.0,1913.5,1913.1,6.57088571]
[1743214631545,3.0,1913.5,1913.3,0.55059231]
[1743214631750,3.0,1913.5,1913.1,6.01966]
[1743214631946,3.0,1913.5,1913.4,0.55027566]
[1743214632450,3.0,1913.5,1913.2,5.22679]
[1743214632657,3.0,1913.5,1913.4,0.55027566]
[1743214632951,3.0,1913.5,1913.2,5.22679]
[1743214633121,3.0,1913.5,1913.4,0.55027566]
[1743214633322,3.0,1913.5,1913.1,6.01966]
[1743214633549,3.0,1913.5,1913.4,0.55027566]
[1743214633730,8.22605,1913.5,1913.1,6.01966]
[1743214633943,8.22605,1913.5,1913.2,0.55090899]
[1743214636859,13.45232,1913.5,1913.2,0.55090899]
[1743214637039,3.0,1913.5,1913.2,0.55090899]
[1743214637242,3.0,1913.5,1913.2,5.77763899]
[1743214638254,3.0,1913.5,1913.2,0.55090899]
[1743214638950,4.23430198,1913.7,1913.3,0.8098]
[1743214639169,1.0,1913.7,1913.5,5.22584]
[1743214639667,1.0,1913.7,1913.6,0.54770741]
[1743214641670,1.0,1913.7,1913.4,10.11623]
[1743214641824,1.0,1913.7,1913.5,0.54608891]
[1743214642237,6.22566,1913.7,1913.5,0.54608891]
[1743214642442,9.45996198,1913.7,1913.5,0.54608891]
[1743214642664,10.21926198,1913.7,1913.5,0.54608891]
[1743214642868,10.21926198,1913.7,1913.3,10.92618]
[1743214643093,13.21926198,1913.7,1913.6,0.54577233]
[1743214643266,13.21926198,1913.7,1913.3,16.15255]
[1743214643471,13.21926198,1913.7,1913.4,0.54640553]
[1743214643900,7.99360198,1913.7,1913.4,0.54640553]
[1743214645290,13.21908198,1913.7,1913.4,0.54640553]
[1743214648271,5.22575,1913.6,1913.4,0.54640553]
[1743214648467,13.21914198,1913.7,1913.3,5.22656]
[1743214648629,13.21914198,1913.7,1913.4,0.54640553]
[1743214648828,7.99360198,1913.7,1913.4,5.77261553]
[1743214649071,13.21920198,1913.7,1913.4,0.54640553]
[1743214652397,5.22585,1913.6,1913.4,0.54640553]
[1743214652699,10.45185,1913.6,1913.2,38.58452]
[1743214652893,10.45185,1913.6,1913.3,0.54672217]
[1743214653052,5.22585,1913.6,1913.3,0.54672217]
[1743214653896,0.7659,1913.5,1913.3,0.54672217]
[1743214654347,5.992,1913.5,1913.3,0.54672217]
[1743214654543,9.22630198,1913.5,1913.3,0.54672217]
[1743214654796,8.22629,1913.4,1913.3,0.54672217]
[1743214655155,11.46059198,1913.4,1913.3,0.54672217]
[1743214661063,3.0,1913.4,1913.3,0.54672217]
[1743214661785,3.0,1913.4,1913.1,10.11608]
[1743214661942,3.0,1913.4,1913.3,0.54718922]
[1743214662143,3.0,1913.4,1913.1,10.11608]
[1743214662378,3.0,1913.4,1913.2,0.5475059]
[1743214662947,11.46063198,1913.4,1913.2,0.5475059]
[1743214663160,16.68718198,1913.4,1913.2,0.5475059]
[1743214663364,5.22657,1913.3,1913.2,0.5475059]
[1743214664791,11.46063198,1913.4,1913.2,0.5475059]
[1743214665187,6.23430198,1913.4,1913.2,0.5475059]
[1743214669693,12.23970198,1913.4,1913.2,0.5475059]
[1743214669900,5.22657,1913.3,1913.2,0.5475059]
[1743214670197,1.0,1913.7,1913.6,6.03645]
[1743214670499,1.0,1913.7,1913.6,11.5377713]
[1743214670697,1.0,1913.7,1913.6,11.4855226]
[1743214671002,1.0,1913.7,1913.6,13.15666086]
[1743214677597,1.0,1913.7,1913.6,40.81266086]
[1743214680870,1.0,1913.7,1913.6,46.89266086]
[1743214683220,0.8292,1914.7,1914.4,5.22333]
[1743214683421,3.8292,1914.7,1914.4,5.22333]
[1743214683781,3.8292,1914.7,1914.5,0.53919022]
[1743214684274,9.9737982,1914.7,1914.5,0.53919022]
[1743214684478,6.05222,1914.6,1914.5,0.53919022]
[1743214684779,3.0,1914.5,1914.3,4.908]
[1743214686985,0.8292,1914.6,1914.4,5.22356]
[1743214687323,0.8292,1914.8,1914.6,5.22291]
[1743214687686,0.8292,1914.8,1914.7,0.53855775]
[1743214689326,0.8292,1914.8,1914.5,5.22311]
[1743214689520,0.8292,1914.8,1914.6,0.53694105]
[1743214696297,5.22309,1914.6,1914.2,32.546]
[1743214696497,0.7702,1914.4,1914.3,0.53788991]
[1743214697428,0.7702,1914.4,1914.3,0.49367751]
[1743214697848,0.7702,1914.4,1914.1,16.52837]
[1743214698145,0.7702,1914.4,1914.3,0.49367751]
[1743214698649,0.7702,1914.4,1914.1,5.22418]
[1743214698826,0.7702,1914.4,1914.3,0.49367751]
[1743214699025,0.7702,1914.4,1914.2,0.49399386]
[1743214699221,0.7702,1914.4,1914.3,0.49367751]
[1743214699625,0.7702,1914.4,1914.1,6.236698]
[1743214699826,0.7702,1914.4,1914.3,0.49367751]
[1743214700026,0.7702,1914.4,1914.2,0.49399386]
[1743214700227,0.7702,1914.4,1914.3,0.49367751]
[1743214700650,0.7702,1914.4,1914.1,6.236698]
[1743214700949,0.7702,1914.4,1914.2,0.49399386]
[1743214701151,0.7702,1914.4,1914.1,6.236698]
[1743214701347,0.7702,1914.4,1914.2,0.49399386]
[1743214701651,0.7702,1914.4,1914.1,6.236698]
[1743214701838,0.7702,1914.4,1914.3,0.49367751]
[1743214702038,0.7702,1914.4,1914.2,0.49489353]
[1743214702250,0.7702,1914.4,1914.3,0.49457718]
[1743214702552,0.7702,1914.4,1914.1,5.22418]
[1743214702735,0.7702,1914.4,1914.1,6.236698]
[1743214702941,0.7702,1914.4,1914.2,0.49489353]
[1743214703252,0.7702,1914.4,1914.1,11.460968]
[1743214703441,0.7702,1914.4,1914.3,0.49457718]
[1743214703621,0.7702,1914.4,1914.2,0.49489353]
[1743214703825,0.7702,1914.4,1914.3,0.49457718]
[1743214704248,0.7702,1914.4,1914.1,6.236698]
[1743214704421,0.7702,1914.4,1914.3,0.49457718]
[1743214704621,0.7702,1914.4,1914.2,0.49489353]
[1743214704816,0.7702,1914.4,1914.3,0.49457718]
[1743214705251,0.7702,1914.9,1914.5,5.22313]
[1743214705449,0.7702,1914.9,1914.7,5.2226]
[1743214705627,0.7702,1914.9,1914.6,6.23920117]
[1743214705953,0.7702,1914.9,1914.7,0.49347871]
[1743214707254,3.23430198,1915.1,1914.7,5.71619871]
[1743214707459,0.7702,1915.1,1914.8,5.2223]
[1743214707655,3.7702,1915.1,1914.8,6.32137241]
[1743214707859,3.7702,1915.1,1914.9,0.49284637]
[1743214709059,0.7702,1915.1,1914.9,0.49284637]
[1743214709266,3.7702,1915.1,1914.9,0.49284637]
[1743214709564,7.00450198,1915.1,1914.9,0.49284637]
[1743214710468,0.55,1915.5,1914.9,0.49284637]
[1743214710469,5.99213,1915.5,1915.1,10.44297]
[1743214710685,14.44888198,1915.2,1914.9,5.39184637]
[1743214710834,3.23430198,1915.1,1914.9,4.899]
[1743214711352,3.23430198,1915.1,1915.0,0.48953265]
[1743214714385,8.45595198,1915.1,1915.0,0.48953265]
[1743214715277,13.70984618,1915.1,1915.0,0.48953265]
[1743214715654,3.0,1914.9,1914.8,27.642]
[1743214715851,6.23430198,1914.9,1914.8,27.642]
[1743214717681,6.23430198,1914.9,1914.5,10.12823]
[1743214718243,6.23430198,1914.9,1914.5,10.18045624]
[1743214718585,6.23430198,1914.9,1914.5,11.80240486]
[1743214718735,6.23430198,1914.9,1914.3,27.638]
[1743214718736,3.23430198,1914.6,1914.3,27.638]
[1743214718940,3.23430198,1914.6,1914.4,4.91]
[1743214719181,11.45716198,1914.7,1914.4,4.91]
[1743214719368,3.0,1914.7,1914.5,0.48831541]
[1743214719552,3.0,1914.7,1914.5,5.71146541]
[1743214719748,3.0,1914.7,1914.5,2.07279295]
[1743214720656,3.0,1914.7,1914.5,0.48831541]
[1743214720657,3.23430198,1914.6,1914.5,0.48831541]
[1743214721065,8.45732198,1914.6,1914.5,0.48831541]
[1743214721364,3.23430198,1914.6,1914.5,0.48831541]
[1743214721568,6.23430198,1914.7,1914.5,0.48831541]
[1743214722580,11.45706198,1914.7,1914.5,0.48831541]
[1743214722766,6.23430198,1914.7,1914.5,0.48831541]
[1743214723372,3.23430198,1914.6,1914.5,0.48831541]
[1743214724955,6.23430198,1914.6,1914.5,0.48831541]
[1743214739396,3.0,1914.6,1914.5,0.48831541]
[1743214739598,3.0,1914.6,1914.5,1.62909095]
[1743214739800,3.0,1914.6,1914.5,6.85238095]
[1743214739967,3.0,1914.6,1914.5,1.62909095]
[1743214740295,3.0,1914.6,1914.5,0.48831541]
[1743214752423,4.94150418,1914.6,1914.5,0.48831541]
[1743214753410,3.0,1914.6,1914.5,0.48831541]
[1743214754629,4.94150418,1914.6,1914.5,0.48831541]
[1743214757824,0.7526,1915.0,1914.6,6.0092]
[1743214757986,1.94150418,1914.9,1914.8,5.22247]
[1743214758186,1.94150418,1914.9,1914.8,0.49026398]
[1743214761738,1.94150418,1914.9,1914.6,6.00937]
[1743214761910,1.94150418,1914.9,1914.8,0.49026398]
[1743214762110,1.94150418,1914.9,1914.7,0.49058016]
[1743214762411,1.94150418,1914.9,1914.8,0.49026398]
[1743214762930,1.94150418,1914.9,1914.6,6.00925]
[1743214763127,1.94150418,1914.9,1914.8,0.49026398]
[1743214763328,1.94150418,1914.9,1914.7,0.48998066]
[1743214763531,1.94150418,1914.9,1914.8,0.48966448]
[1743214763900,3.0,1914.8,1914.6,1.909654]
[1743214764333,4.94150418,1914.8,1914.7,0.48998066]
[1743214764904,10.16397418,1914.8,1914.7,0.48998066]
[1743214765106,12.4551916,1914.8,1914.7,0.48998066]
[1743214765450,10.91657418,1914.8,1914.7,0.48998066]
[1743214765623,5.22279,1914.7,1914.3,5.6764]
[1743214765825,1.94150418,1914.6,1914.4,0.49092942]
[1743214766034,1.94150418,1914.6,1914.3,5.6764]
[1743214766245,1.94150418,1914.6,1914.4,0.49092942]
[1743214766550,1.94150418,1914.6,1914.3,5.6764]
[1743214766710,1.94150418,1914.6,1914.5,0.49061313]
[1743214766911,13.68196129,1914.7,1914.5,0.49061313]
[1743214767133,8.45908129,1914.7,1914.3,12.51267]
[1743214767639,8.45908129,1914.7,1914.4,0.49079618]
[1743214767840,8.45908129,1914.7,1914.3,12.51267]
[1743214768142,8.45908129,1914.7,1914.4,0.49079618]
[1743214768447,8.45908129,1914.7,1914.3,12.51267]
[1743214768744,8.45908129,1914.7,1914.4,1.27548359]
[1743214770039,0.7526,1915.2,1914.9,5.22201]
[1743214770239,6.68876132,1915.4,1915.0,5.76281682]
[1743214770240,5.47356261,1915.4,1915.0,5.76281682]
[1743214770448,5.47356261,1915.4,1915.0,6.28688072]
[1743214770610,3.0,1915.3,1915.0,11.50870072]
[1743214771015,3.0,1915.3,1915.0,11.50868072]
[1743214771632,3.0,1915.3,1915.1,6.05890113]
[1743214771918,3.0,1915.3,1915.2,0.4867683]
[1743214772318,3.0,1915.3,1915.1,6.05890111]
[1743214772530,3.0,1915.3,1915.2,0.48646868]
[1743214772917,3.0,1915.3,1915.1,7.19238828]
[1743214773121,3.0,1915.3,1915.2,0.48646868]
[1743214773537,3.0,1915.3,1915.1,12.09738828]
[1743214773754,3.0,1915.3,1915.2,0.48646868]
[1743214774134,3.0,1915.3,1915.1,12.09752828]
[1743214774334,3.0,1915.3,1915.2,1.69622151]
[1743214776925,3.0,1915.3,1915.2,0.48646868]
[1743214777339,3.0,1915.3,1915.1,4.905]
[1743214777549,3.0,1915.3,1915.2,0.48503701]
[1743214777861,3.0,1915.3,1915.1,4.905]
[1743214778158,3.0,1915.3,1915.2,0.48503701]
[1743214778346,3.0,1915.3,1915.2,1.02404071]
[1743214778545,3.0,1915.3,1915.2,0.5390037]
[1743214778746,3.0,1915.3,1915.2,1.02404071]
[1743214779254,12.22690129,1915.3,1915.2,0.48503701]
[1743214779454,12.22690129,1915.3,1914.8,33.64647]
[1743214779634,12.22690129,1915.3,1914.9,5.76014561]
[1743214780054,7.00579129,1915.3,1915.0,5.22192]
[1743214780361,7.00579129,1915.3,1915.1,0.48518662]
[1743214780534,7.00579129,1915.5,1915.2,5.22124]
[1743214780942,7.00579129,1915.5,1915.3,0.48485415]
[1743214781659,7.00579129,1915.5,1915.1,6.00666]
[1743214781861,7.00579129,1915.5,1915.2,5.70651017]
[1743214783423,12.22690129,1915.3,1915.2,0.48517017]
[1743214783657,5.22184,1915.1,1914.8,27.639]
[1743214783880,13.68002129,1915.1,1914.9,0.47148413]
[1743214784053,5.22193,1915.0,1914.9,0.47148413]
[1743214784259,5.99143,1915.0,1914.9,0.47148413]
[1743214785783,8.99143,1915.0,1914.9,0.47148413]
[1743214787466,3.0,1915.0,1914.9,3.28253254]
[1743214788636,3.0,1915.0,1914.9,0.47148413]
[1743214798074,8.22193,1915.0,1914.9,0.47148413]
[1743214798890,3.0,1915.0,1914.9,0.47148413]
[1743214801371,3.0,1915.0,1914.7,10.90903]
[1743214801571,3.0,1915.0,1914.9,0.47258038]
[1743214801760,3.0,1915.0,1914.8,0.47289653]
[1743214801961,3.0,1915.0,1914.9,0.47258038]
[1743214802877,8.22193,1915.0,1914.9,0.47258038]
[1743214803554,8.22193,1915.0,1914.7,5.6864]
[1743214803900,8.22193,1915.0,1914.8,0.47289653]
[1743214806403,3.0,1915.0,1914.8,0.47289653]
[1743214806587,3.0,1915.0,1914.8,1.61108918]
[1743214807758,9.00115,1915.0,1914.8,1.61108918]